[Event "DVM U10 2024"]
[Site "Duesseldorf"]
[Date "2024.12.29"]
[Round "7"]
[White "Gerhardt, Noah"]
[Black "Ju, Eric Zirui"]
[Result "0-1"]
[ECO "B22"]
[WhiteElo "1140"]
[BlackElo "1126"]
[Annotator "NA"]
[PlyCount "70"]
[EventDate "2024.12.23"]
[EventType "team-tourn"]
[EventRounds "7"]
[EventCountry "GER"]
[SourceTitle "playchess.com"]
[Source "ChessBase"]
[SourceQuality "1"]
[TimeControl "3300+5"]

1. e4 {[%emt 0:00:03]} c5 {[%emt 0:00:07]} 2. c3 {[%emt 0:00:19]} Nf6 {[%emt 0:00:16]} 3. d3 {[%emt 0:00:17]} e6 {[%emt 0:01:07]} 4. Bf4 {[%emt 0:00:20]} Nc6 {[%emt 0:00:41]} 5. c4 {[%emt 0:01:13]} Qb6 {[%emt 0:01:39]} 6. Qd2 {[%emt 0:02:03]} Be7 {[%emt 0:00:31]} 7. Nf3 {[%emt 0:00:40]} d6 {[%emt 0:02:00]} 8. e5 {[%emt 0:01:33]} dxe5 {[%emt 0:00:46]} 9. Bxe5 {[%emt 0:00:36]} Nxe5 {[%emt 0:00:40]} 10. Nxe5 {[%emt 0:02:14]} O-O {[%emt 0:00:48]} 11. Be2 {[%emt 0:00:37]} Qd6 {[%emt 0:01:41]} 12. Ng4 {[%emt 0:00:47]} Nxg4 {[%emt 0:00:31]} 13. Bxg4 {[%emt 0:00:20]} Bf6 {[%emt 0:01:03]} 14. Nc3 {[%emt 0:00:28]} Qd4 {[%emt 0:03:19]} 15. Bf3 {[%emt 0:01:04]} a6 {[%emt 0:01:08]} 16. O-O {[%emt 0:00:16]} Rb8 {[%emt 0:00:42]} 17. Rab1 {[%emt 0:00:20]} b5 {[%emt 0:01:00]} 18. cxb5 {[%emt 0:01:04]} axb5 {[%emt 0:00:29]} 19. Ne2 {[%emt 0:00:24]} Qd6 {[%emt 0:01:01]} 20. Rfd1 {[%emt 0:00:39]} Rd8 {[%emt 0:00:22]} 21. Qc2 {[%emt 0:01:29]} Ba6 {[%emt 0:01:47]} 22. Be4 {[%emt 0:02:30]} Rbc8 {[%emt 0:01:29]} 23. Rd2 {[%emt 0:03:08]} c4 {[%emt 0:01:10]} 24. Rdd1 {[%emt 0:02:40]} Qb6 {[%emt 0:03:30]} 25. d4 {[%emt 0:08:30]} h6 {[%emt 0:01:45]} 26. d5 {[%emt 0:01:27]} exd5 {[%emt 0:00:34]} 27. Rxd5 {[%emt 0:00:41]} Rxd5 {[%emt 0:00:44]} 28. Bxd5 {[%emt 0:00:36]} Rd8 {[%emt 0:00:48]} 29. Rd1 {[%emt 0:00:42]} Bb7 {[%emt 0:02:22]} 30. Bxb7 {[%emt 0:00:29]} Rxd1+ {[%emt 0:00:23]} 31. Qxd1 {[%emt 0:00:10]} Qxb7 {[%emt 0:00:09]} 32. Qc2 {[%emt 0:00:16]} Qd7 {[%emt 0:00:33]} 33. g3 {[%emt 0:00:25]} Qd3 {[%emt 0:00:16]} 34. Qd1 {[%emt 0:01:02]} Qd8 {[%emt 0:00:01]} 35. Qc2 {[%emt 0:00:10]} Qd3 {[%emt 0:00:03]} 0-1

[Event "DVM U10 2024"]
[Site "Duesseldorf"]
[Date "2024.12.29"]
[Round "7"]
[White "Leppin, Mattis"]
[Black "Roessling, Johannes"]
[Result "1/2-1/2"]
[ECO "C24"]
[WhiteElo "1138"]
[BlackElo "1618"]
[Annotator "NA"]
[PlyCount "109"]
[EventDate "2024.12.23"]
[EventType "team-tourn"]
[EventRounds "7"]
[EventCountry "GER"]
[SourceTitle "playchess.com"]
[Source "ChessBase"]
[SourceQuality "1"]
[TimeControl "3300+5"]

1. e4 {[%emt 0:00:01]} e5 {[%emt 0:00:05]} 2. Nf3 {[%emt 0:00:05]} Nc6 {[%emt 0:00:06]} 3. Bc4 {[%emt 0:00:07]} Nf6 {[%emt 0:00:20]} 4. d3 {[%emt 0:00:06]} d5 {[%emt 0:00:04]} 5. exd5 {[%emt 0:00:43]} Nxd5 {[%emt 0:00:06]} 6. Bxd5 {[%emt 0:00:37]} Qxd5 {[%emt 0:00:09]} 7. Nc3 {[%emt 0:00:05]} Qd8 {[%emt 0:00:07]} 8. Be3 {[%emt 0:00:06]} Bg4 {[%emt 0:01:08]} 9. h3 {[%emt 0:00:09]} Bh5 {[%emt 0:00:06]} 10. Qe2 {[%emt 0:00:47]} Bd6 {[%emt 0:01:24]} 11. O-O-O {[%emt 0:00:50]} Qe7 {[%emt 0:08:33]} 12. Nb5 {[%emt 0:00:59]} Bb4 {[%emt 0:00:58]} 13. Bd2 {[%emt 0:00:25]} Bxd2+ {[%emt 0:01:15]} 14. Rxd2 {[%emt 0:00:21]} O-O-O {[%emt 0:01:34]} 15. Qe3 {[%emt 0:00:43]} a6 {[%emt 0:02:09]} 16. Nc3 {[%emt 0:00:49]} Rhe8 {[%emt 0:03:44]} 17. g4 {[%emt 0:00:20]} Bg6 {[%emt 0:00:38]} 18. Re1 {[%emt 0:00:17]} f6 {[%emt 0:06:06]} 19. Kb1 {[%emt 0:00:26]} Qd7 {[%emt 0:02:10]} 20. Ne4 {[%emt 0:00:35]} Nd4 {[%emt 0:00:55]} 21. c3 {[%emt 0:04:35]} Nxf3 {[%emt 0:01:59]} 22. Qxf3 {[%emt 0:01:03]} Qc6 {[%emt 0:02:01]} 23. Red1 {[%emt 0:03:56]} Rd7 {[%emt 0:02:32]} 24. Qe3 {[%emt 0:00:46]} Red8 {[%emt 0:00:55]} 25. f3 {[%emt 0:00:31]} Qb5 {[%emt 0:05:36]} 26. Qa7 {[%emt 0:04:20]} Re7 {[%emt 0:03:25]} 27. Qf2 {[%emt 0:01:02]} Kb8 {[%emt 0:00:55]} 28. d4 {[%emt 0:01:06]} Qc6 {[%emt 0:03:06]} 29. Qe3 {[%emt 0:01:52]} f5 {[%emt 0:01:13]} 30. gxf5 {[%emt 0:03:43]} Bxf5 {[%emt 0:00:03]} 31. dxe5 {[%emt 0:00:33]} Red7 {[%emt 0:01:33]} 32. Ka1 {[%emt 0:01:59]} Bxe4 {[%emt 0:00:29]} 33. fxe4 {[%emt 0:00:51]} Rxd2 {[%emt 0:00:06]} 34. Rxd2 {[%emt 0:00:20]} Rxd2 {[%emt 0:00:02]} 35. Qxd2 {[%emt 0:00:26]} Qxe4 {[%emt 0:00:03]} 36. Qd8+ {[%emt 0:00:28]} Ka7 {[%emt 0:00:04]} 37. Qd4+ {[%emt 0:00:09]} Qxd4 {[%emt 0:00:10]} 38. cxd4 {[%emt 0:00:05]} Kb6 {[%emt 0:00:06]} 39. Kb1 {[%emt 0:01:30]} Kc6 {[%emt 0:00:07]} 40. Kc2 {[%emt 0:00:06]} Kd5 {[%emt 0:00:10]} 41. b4 {[%emt 0:00:15]} b6 {[%emt 0:00:10]} 42. Kc3 {[%emt 0:00:19]} c5 {[%emt 0:00:06]} 43. e6 {[%emt 0:01:33]} Kxe6 {[%emt 0:00:06]} 44. bxc5 {[%emt 0:00:11]} bxc5 {[%emt 0:00:03]} 45. dxc5 {[%emt 0:00:08]} Kd5 {[%emt 0:00:12]} 46. Kb4 {[%emt 0:00:10]} Kc6 {[%emt 0:00:02]} 47. Ka5 {[%emt 0:00:34]} Kxc5 {[%emt 0:00:07]} 48. Kxa6 {[%emt 0:00:05]} Kb4 {[%emt 0:00:13]} 49. Kb6 {[%emt 0:00:15]} g5 {[%emt 0:00:41]} 50. Kc6 {[%emt 0:00:17]} h5 {[%emt 0:00:07]} 51. Kd5 {[%emt 0:00:06]} g4 {[%emt 0:00:12]} 52. hxg4 {[%emt 0:00:08]} hxg4 {[%emt 0:00:08]} 53. Ke4 {[%emt 0:00:06]} Ka3 {[%emt 0:00:02]} 54. Kf4 {[%emt 0:00:05]} Kxa2 {[%emt 0:00:17]} 55. Kxg4 {[%emt 0:00:05]} 1/2-1/2

[Event "DVM U10 2024"]
[Site "Duesseldorf"]
[Date "2024.12.29"]
[Round "7"]
[White "Guan, Guoyou"]
[Black "Qu, Mengdi"]
[Result "1-0"]
[ECO "B22"]
[WhiteElo "1128"]
[BlackElo "1111"]
[Annotator "NA"]
[PlyCount "159"]
[EventDate "2024.12.23"]
[EventType "team-tourn"]
[EventRounds "7"]
[EventCountry "GER"]
[SourceTitle "playchess.com"]
[Source "ChessBase"]
[SourceQuality "1"]
[TimeControl "3300+5"]

1. e4 {[%emt 0:00:01]} c5 {[%emt 0:00:07]} 2. c3 {[%emt 0:00:04]} e6 {[%emt 0:00:10]} 3. d4 {[%emt 0:00:08]} Nc6 {[%emt 0:00:17]} 4. d5 {[%emt 0:00:08]} Ne5 {[%emt 0:00:52]} 5. Bf4 {[%emt 0:00:16]} Bd6 {[%emt 0:00:44]} 6. Nd2 {[%emt 0:01:46]} Nd3+ {[%emt 0:01:45]} 7. Bxd3 {[%emt 0:00:57]} Bxf4 {[%emt 0:00:08]} 8. Ngf3 {[%emt 0:01:01]} Nf6 {[%emt 0:01:11]} 9. d6 {[%emt 0:00:24]} Qb6 {[%emt 0:01:29]} 10. Nc4 {[%emt 0:00:26]} Qc6 {[%emt 0:00:59]} 11. e5 {[%emt 0:00:15]} Nd5 {[%emt 0:01:54]} 12. O-O {[%emt 0:02:04]} O-O {[%emt 0:00:52]} 13. Qe2 {[%emt 0:00:24]} f6 {[%emt 0:03:15]} 14. Qe4 {[%emt 0:00:22]} f5 {[%emt 0:00:43]} 15. Qe2 {[%emt 0:00:24]} b6 {[%emt 0:00:51]} 16. Rab1 {[%emt 0:00:59]} a5 {[%emt 0:01:13]} 17. Nfd2 {[%emt 0:01:06]} a4 {[%emt 0:01:21]} 18. Qh5 {[%emt 0:00:34]} Ba6 {[%emt 0:00:44]} 19. Be2 {[%emt 0:00:56]} Bxd2 {[%emt 0:00:24]} 20. Nxd2 {[%emt 0:00:16]} Bxe2 {[%emt 0:00:20]} 21. Qxe2 {[%emt 0:00:11]} a3 {[%emt 0:01:01]} 22. c4 {[%emt 0:01:03]} Nf4 {[%emt 0:02:12]} 23. Qf3 {[%emt 0:01:14]} Qxf3 {[%emt 0:00:42]} 24. Nxf3 {[%emt 0:00:09]} Nd3 {[%emt 0:00:32]} 25. b3 {[%emt 0:00:08]} f4 {[%emt 0:00:41]} 26. Rbd1 {[%emt 0:02:31]} Nb4 {[%emt 0:00:53]} 27. Rd2 {[%emt 0:00:13]} Nc6 {[%emt 0:00:26]} 28. Re1 {[%emt 0:01:15]} Ra5 {[%emt 0:00:59]} 29. Re4 {[%emt 0:00:42]} b5 {[%emt 0:01:18]} 30. cxb5 {[%emt 0:00:25]} Rxb5 {[%emt 0:00:21]} 31. Ra4 {[%emt 0:00:27]} Ra5 {[%emt 0:01:30]} 32. Rc4 {[%emt 0:01:04]} Rf5 {[%emt 0:00:38]} 33. Re2 {[%emt 0:00:22]} g5 {[%emt 0:00:55]} 34. h3 {[%emt 0:00:24]} h6 {[%emt 0:01:12]} 35. Kh2 {[%emt 0:06:55]} Kf7 {[%emt 0:01:08]} 36. Rce4 {[%emt 0:02:16]} Nb4 {[%emt 0:00:33]} 37. Kg1 {[%emt 0:02:00]} Nd5 {[%emt 0:00:17]} 38. Rc4 {[%emt 0:00:36]} Ke8 {[%emt 0:00:34]} 39. Rec2 {[%emt 0:00:53]} Nb4 {[%emt 0:01:49]} 40. Rxc5 {[%emt 0:01:10]} Ra6 {[%emt 0:01:50]} 41. Rd2 {[%emt 0:01:08]} Nc6 {[%emt 0:00:57]} 42. Re2 {[%emt 0:00:47]} Rf8 {[%emt 0:00:30]} 43. Rec2 {[%emt 0:01:04]} Kf7 {[%emt 0:00:25]} 44. Rb5 {[%emt 0:00:20]} Ra7 {[%emt 0:01:15]} 45. Rb6 {[%emt 0:01:33]} Rfa8 {[%emt 0:00:24]} 46. Rc5 {[%emt 0:01:27]} Kg6 {[%emt 0:00:25]} 47. Rcb5 {[%emt 0:00:14]} Na5 {[%emt 0:00:30]} 48. Nd4 {[%emt 0:00:32]} Kh5 {[%emt 0:00:19]} 49. Kh2 {[%emt 0:00:24]} g4 {[%emt 0:00:27]} 50. hxg4+ {[%emt 0:00:43]} Kxg4 {[%emt 0:00:13]} 51. f3+ {[%emt 0:00:56]} Kh4 {[%emt 0:00:12]} 52. Rb8 {[%emt 0:00:42]} h5 {[%emt 0:00:45]} 53. Rxa8 {[%emt 0:00:26]} Rxa8 {[%emt 0:00:07]} 54. b4 {[%emt 0:00:19]} Nc4 {[%emt 0:00:47]} 55. Rb7 {[%emt 0:00:06]} Nxe5 {[%emt 0:00:07]} 56. b5 {[%emt 0:00:10]} Ra4 {[%emt 0:00:31]} 57. Nb3 {[%emt 0:00:12]} Rb4 {[%emt 0:00:14]} 58. Rb8 {[%emt 0:00:53]} Nc4 {[%emt 0:00:22]} 59. Nc5 {[%emt 0:00:31]} Nxd6 {[%emt 0:00:30]} 60. Nxd7 {[%emt 0:00:17]} Rxb5 {[%emt 0:00:20]} 61. Ra8 {[%emt 0:00:26]} Nc4 {[%emt 0:00:20]} 62. Ra4 {[%emt 0:00:20]} Rb2 {[%emt 0:01:13]} 63. Rxc4 {[%emt 0:00:13]} Rxa2 {[%emt 0:00:05]} 64. Ra4 {[%emt 0:00:04]} Ra1 {[%emt 0:00:05]} 65. Nc5 {[%emt 0:00:19]} a2 {[%emt 0:00:06]} 66. Nxe6 {[%emt 0:00:10]} Rh1+ {[%emt 0:00:23]} 67. Kxh1 {[%emt 0:00:49]} a1=Q+ {[%emt 0:00:05]} 68. Rxa1 {[%emt 0:00:14]} Kg3 {[%emt 0:00:04]} 69. Ra8 {[%emt 0:00:08]} h4 {[%emt 0:00:10]} 70. Rf8 {[%emt 0:00:09]} h3 {[%emt 0:00:10]} 71. gxh3 {[%emt 0:00:15]} Kf2 {[%emt 0:00:04]} 72. Rxf4 {[%emt 0:00:14]} Kf1 {[%emt 0:00:08]} 73. h4 {[%emt 0:00:05]} Kf2 {[%emt 0:00:07]} 74. h5 {[%emt 0:00:09]} Kg3 {[%emt 0:00:03]} 75. h6 {[%emt 0:00:13]} Kf2 {[%emt 0:00:06]} 76. h7 {[%emt 0:00:09]} Kf1 {[%emt 0:00:06]} 77. h8=Q {[%emt 0:00:09]} Kf2 {[%emt 0:00:05]} 78. Qd4+ {[%emt 0:00:16]} Kg3 {[%emt 0:00:08]} 79. Qg1+ {[%emt 0:00:13]} Kh3 {[%emt 0:00:17]} 80. Qg4# {[%emt 0:00:07]} 1-0

[Event "DVM U10 2024"]
[Site "Duesseldorf"]
[Date "2024.12.29"]
[Round "7"]
[White "Pohlmann, Johannes Leon"]
[Black "Thotli, Jathin Krishna"]
[Result "1-0"]
[ECO "C50"]
[WhiteElo "1127"]
[BlackElo "1422"]
[Annotator "NA"]
[PlyCount "55"]
[EventDate "2024.12.23"]
[EventType "team-tourn"]
[EventRounds "7"]
[EventCountry "GER"]
[SourceTitle "playchess.com"]
[Source "ChessBase"]
[SourceQuality "1"]
[TimeControl "3300+5"]

1. e4 {[%emt 0:00:00]} e5 {[%emt 0:00:00]} 2. Nf3 {[%emt 0:00:03]} Nc6 {[%emt 0:00:03]} 3. Bc4 {[%emt 0:00:11]} Nf6 {[%emt 0:00:04]} 4. d3 {[%emt 0:00:18]} Bc5 {[%emt 0:00:05]} 5. Bg5 {[%emt 0:00:13]} h6 {[%emt 0:00:07]} 6. Bh4 {[%emt 0:00:15]} d6 {[%emt 0:00:25]} 7. h3 {[%emt 0:00:09]} Be6 {[%emt 0:00:19]} 8. Bxe6 {[%emt 0:00:10]} fxe6 {[%emt 0:00:07]} 9. O-O {[%emt 0:00:12]} Qd7 {[%emt 0:00:08]} 10. Bxf6 {[%emt 0:00:22]} gxf6 {[%emt 0:00:07]} 11. Nc3 {[%emt 0:00:20]} O-O-O {[%emt 0:00:06]} 12. a3 {[%emt 0:00:23]} f5 {[%emt 0:00:06]} 13. exf5 {[%emt 0:00:59]} exf5 {[%emt 0:00:11]} 14. Rb1 {[%emt 0:00:34]} Rhg8 {[%emt 0:00:12]} 15. Kh2 {[%emt 0:00:46]} Qg7 {[%emt 0:00:17]} 16. Nh4 {[%emt 0:01:35]} Qg5 {[%emt 0:00:27]} 17. g3 {[%emt 0:01:44]} f4 {[%emt 0:00:33]} 18. Ne4 {[%emt 0:01:24]} fxg3+ {[%emt 0:00:15]} 19. fxg3 {[%emt 0:00:43]} Qg7 {[%emt 0:01:20]} 20. Nf5 {[%emt 0:01:31]} Qg6 {[%emt 0:00:19]} 21. b4 {[%emt 0:00:34]} Rdf8 {[%emt 0:02:09]} 22. g4 {[%emt 0:01:39]} h5 {[%emt 0:03:12]} 23. bxc5 {[%emt 0:01:47]} hxg4 {[%emt 0:00:41]} 24. Qxg4 {[%emt 0:00:54]} Qh7 {[%emt 0:02:13]} 25. Ne7+ {[%emt 0:01:45]} Kb8 {[%emt 0:00:43]} 26. Nxg8 {[%emt 0:00:19]} Rxg8 {[%emt 0:00:09]} 27. Qf5 {[%emt 0:00:41]} Qg7 {[%emt 0:00:26]} 28. Rg1 {[%emt 0:01:08]} 1-0

[Event "DVM U10 2024"]
[Site "Duesseldorf"]
[Date "2024.12.29"]
[Round "7"]
[White "Balla, Virinchi"]
[Black "Liu, Mio Runhan"]
[Result "1-0"]
[ECO "C54"]
[WhiteElo "1123"]
[BlackElo "1198"]
[Annotator "NA"]
[PlyCount "155"]
[EventDate "2024.12.23"]
[EventType "team-tourn"]
[EventRounds "7"]
[EventCountry "GER"]
[SourceTitle "playchess.com"]
[Source "ChessBase"]
[SourceQuality "1"]
[TimeControl "3300+5"]

1. e4 {[%emt 0:00:01]} e5 {[%emt 0:00:15]} 2. Nf3 {[%emt 0:00:03]} Nc6 {[%emt 0:00:07]} 3. Bc4 {[%emt 0:00:03]} Bc5 {[%emt 0:00:05]} 4. c3 {[%emt 0:00:10]} Nf6 {[%emt 0:00:04]} 5. d4 {[%emt 0:00:05]} exd4 {[%emt 0:00:08]} 6. e5 {[%emt 0:00:13]} d5 {[%emt 0:00:11]} 7. Bb5 {[%emt 0:00:39]} Ne4 {[%emt 0:00:39]} 8. cxd4 {[%emt 0:00:35]} Bb4+ {[%emt 0:00:18]} 9. Bd2 {[%emt 0:00:53]} Nxd2 {[%emt 0:01:06]} 10. Nbxd2 {[%emt 0:00:18]} O-O {[%emt 0:01:49]} 11. O-O {[%emt 0:00:49]} Bg4 {[%emt 0:01:07]} 12. Nb3 {[%emt 0:01:45]} a6 {[%emt 0:00:54]} 13. Bxc6 {[%emt 0:00:27]} bxc6 {[%emt 0:00:10]} 14. a3 {[%emt 0:01:30]} Be7 {[%emt 0:00:23]} 15. h3 {[%emt 0:01:20]} Bh5 {[%emt 0:00:49]} 16. Qd3 {[%emt 0:03:04]} Rb8 {[%emt 0:00:32]} 17. Na5 {[%emt 0:01:43]} Rb6 {[%emt 0:00:51]} 18. Nd2 {[%emt 0:02:47]} Qc8 {[%emt 0:05:28]} 19. Rac1 {[%emt 0:05:27]} Qe6 {[%emt 0:02:56]} 20. Ndb3 {[%emt 0:02:53]} f6 {[%emt 0:05:54]} 21. Qc3 {[%emt 0:01:39]} Be2 {[%emt 0:03:27]} 22. Rfe1 {[%emt 0:00:19]} Bb5 {[%emt 0:00:05]} 23. Nc5 {[%emt 0:01:11]} Bxc5 {[%emt 0:00:20]} 24. dxc5 {[%emt 0:00:14]} Rbb8 {[%emt 0:00:51]} 25. exf6 {[%emt 0:03:53]} Qxf6 {[%emt 0:00:12]} 26. Qxf6 {[%emt 0:00:20]} Rxf6 {[%emt 0:00:15]} 27. Re7 {[%emt 0:02:04]} Rc8 {[%emt 0:00:59]} 28. Rce1 {[%emt 0:01:10]} Kf8 {[%emt 0:03:21]} 29. Rd7 {[%emt 0:01:33]} Rf7 {[%emt 0:00:30]} 30. Rxf7+ {[%emt 0:00:21]} Kxf7 {[%emt 0:00:09]} 31. b4 {[%emt 0:00:23]} Re8 {[%emt 0:00:38]} 32. Rxe8 {[%emt 0:05:33]} Kxe8 {[%emt 0:00:09]} 33. Kh2 {[%emt 0:00:31]} d4 {[%emt 0:00:12]} 34. Nb3 {[%emt 0:00:15]} d3 {[%emt 0:00:07]} 35. Nd2 {[%emt 0:00:07]} Ke7 {[%emt 0:00:05]} 36. Kg3 {[%emt 0:00:07]} Ke6 {[%emt 0:00:01]} 37. Kf3 {[%emt 0:00:15]} Kd5 {[%emt 0:00:14]} 38. Ke3 {[%emt 0:00:11]} g5 {[%emt 0:01:14]} 39. g3 {[%emt 0:00:26]} h5 {[%emt 0:02:49]} 40. f3 {[%emt 0:01:21]} Ke5 {[%emt 0:00:20]} 41. f4+ {[%emt 0:00:15]} Kf5 {[%emt 0:01:58]} 42. g4+ {[%emt 0:01:19]} hxg4 {[%emt 0:00:25]} 43. hxg4+ {[%emt 0:00:14]} Kxg4 {[%emt 0:00:19]} 44. fxg5 {[%emt 0:00:24]} Kxg5 {[%emt 0:00:08]} 45. Kd4 {[%emt 0:01:06]} Kf6 {[%emt 0:00:16]} 46. Kc3 {[%emt 0:00:53]} Ke5 {[%emt 0:00:19]} 47. Nf3+ {[%emt 0:00:25]} Ke4 {[%emt 0:00:18]} 48. Nd2+ {[%emt 0:01:14]} Ke3 {[%emt 0:00:17]} 49. Nf1+ {[%emt 0:00:13]} Kf2 {[%emt 0:00:41]} 50. Nd2 {[%emt 0:00:15]} Ke2 {[%emt 0:00:19]} 51. Nb1 {[%emt 0:00:31]} Ba4 {[%emt 0:00:32]} 52. Nd2 {[%emt 0:00:17]} Bc2 {[%emt 0:00:25]} 53. Ne4 {[%emt 0:00:26]} Bb1 {[%emt 0:01:49]} 54. Nd2 {[%emt 0:00:08]} Ba2 {[%emt 0:00:57]} 55. Ne4 {[%emt 0:00:09]} Bd5 {[%emt 0:01:38]} 56. Nd2 {[%emt 0:00:06]} Bg8 {[%emt 0:00:13]} 57. Nb1 {[%emt 0:00:12]} Bc4 {[%emt 0:01:17]} 58. Kxc4 {[%emt 0:00:31]} d2 {[%emt 0:00:07]} 59. Nxd2 {[%emt 0:00:10]} Kxd2 {[%emt 0:00:05]} 60. a4 {[%emt 0:00:06]} Ke3 {[%emt 0:00:10]} 61. b5 {[%emt 0:00:09]} axb5+ {[%emt 0:00:14]} 62. axb5 {[%emt 0:00:02]} Ke4 {[%emt 0:02:18]} 63. b6 {[%emt 0:00:09]} cxb6 {[%emt 0:01:01]} 64. cxb6 {[%emt 0:00:03]} Ke5 {[%emt 0:00:04]} 65. b7 {[%emt 0:00:02]} Kd6 {[%emt 0:00:00]} 66. b8=Q+ {[%emt 0:00:06]} Ke6 {[%emt 0:00:02]} 67. Qc7 {[%emt 0:00:04]} Kf5 {[%emt 0:00:01]} 68. Qxc6 {[%emt 0:00:02]} Kf4 {[%emt 0:00:05]} 69. Qe8 {[%emt 0:00:02]} Kf5 {[%emt 0:00:02]} 70. Kd5 {[%emt 0:00:03]} Kf4 {[%emt 0:00:01]} 71. Qe4+ {[%emt 0:00:00]} Kg3 {[%emt 0:00:02]} 72. Qf5 {[%emt 0:00:07]} Kg2 {[%emt 0:00:03]} 73. Qd3 {[%emt 0:00:04]} Kf2 {[%emt 0:00:02]} 74. Ke4 {[%emt 0:00:05]} Kg2 {[%emt 0:00:03]} 75. Qf3+ {[%emt 0:00:02]} Kh2 {[%emt 0:00:03]} 76. Qg4 {[%emt 0:00:02]} Kh1 {[%emt 0:00:01]} 77. Kf3 {[%emt 0:00:01]} Kh2 {[%emt 0:00:03]} 78. Qg2# {[%emt 0:00:01]} 1-0